[Event "*** Titled Tuesday 3|2 Blitz (Early)"]
[Site "Chess.com"]
[Date "2016.11.01"]
[Round "1"]
[White "GianmarcoVaR"]
[Black "Paralinch"]
[Result "1/2-1/2"]
[WhiteElo "2405"]
[BlackElo "2639"]
[TimeControl "180+2"]
[EndTime "11:09:50 PDT"]
[Termination "Game drawn by agreement"]

1. d4 {[%clk 0:02:57.5]} 1... d5 {[%clk 0:03:00.9]} 2. Nf3 {[%clk 0:02:59]} 2...
Nf6 {[%clk 0:03:01.4]} 3. c4 {[%clk 0:03:00.2]} 3... dxc4 {[%clk 0:03:03.3]} 4.
e3 {[%clk 0:03:00.1]} 4... e6 {[%clk 0:03:04]} 5. Bxc4 {[%clk 0:03:01.5]} 5...
c5 {[%clk 0:03:05.4]} 6. O-O {[%clk 0:03:03]} 6... a6 {[%clk 0:03:06.6]} 7. Bb3
{[%clk 0:03:02.3]} 7... Be7 {[%clk 0:03:05.6]} 8. dxc5 {[%clk 0:02:56.9]} 8...
Qxd1 {[%clk 0:03:06]} 9. Rxd1 {[%clk 0:02:58.4]} 9... Bxc5 {[%clk 0:03:06.7]}
10. Nc3 {[%clk 0:02:52.3]} 10... b5 {[%clk 0:03:07.7]} 11. Bd2 {[%clk
0:02:53.3]} 11... Bb7 {[%clk 0:03:08.6]} 12. Rac1 {[%clk 0:02:54.5]} 12... Nbd7
{[%clk 0:03:09.7]} 13. a4 {[%clk 0:02:47.5]} 13... b4 {[%clk 0:03:09.8]} 14. Ne2
{[%clk 0:02:48.1]} 14... a5 {[%clk 0:03:07.2]} 15. Ned4 {[%clk 0:02:46.4]} 15...
Ke7 {[%clk 0:03:05.2]} 16. Bc4 {[%clk 0:02:43.2]} 16... Rhc8 {[%clk 0:03:01.9]}
17. Bb5 {[%clk 0:02:43.1]} 17... Rc7 {[%clk 0:02:50.1]} 18. Nb3 {[%clk
0:02:30.4]} 18... Bb6 {[%clk 0:02:45.8]} 19. Rxc7 {[%clk 0:02:29]} 19... Bxc7
{[%clk 0:02:47.7]} 20. Nfd4 {[%clk 0:02:28.3]} 20... Rc8 {[%clk 0:02:21.8]} 21.
Rc1 {[%clk 0:02:27.5]} 21... Ne4 {[%clk 0:02:04.4]} 22. Be1 {[%clk 0:02:26.9]}
22... Nd6 {[%clk 0:01:45]} 23. Bc6 {[%clk 0:01:48.8]} 23... Bb6 {[%clk
0:01:43.7]} 24. Bxb7 {[%clk 0:00:56.6]} 24... Rxc1 {[%clk 0:01:43.5]} 25. Nxc1
{[%clk 0:00:42.9]} 25... Nxb7 {[%clk 0:01:44.1]} 26. Ndb3 {[%clk 0:00:36.9]}
26... Ndc5 {[%clk 0:01:34.5]} 27. Nxc5 {[%clk 0:00:36]} 27... Nxc5 {[%clk
0:01:36.4]} 28. b3 {[%clk 0:00:36.1]} 28... Bc7 {[%clk 0:01:37.6]} 29. Kf1
{[%clk 0:00:22]} 29... Be5 {[%clk 0:01:36.9]} 30. Ke2 {[%clk 0:00:23.2]} 30...
Bb2 {[%clk 0:01:37.9]} 31. Nd3 {[%clk 0:00:24.3]} 31... Nxd3 {[%clk 0:01:27.6]}
32. Kxd3 {[%clk 0:00:26.2]} 32... Kd6 {[%clk 0:01:29.1]} 33. f3 {[%clk
0:00:26.5]} 33... Be5 {[%clk 0:01:18.8]} 34. Kc4 {[%clk 0:00:23.8]} 34... Kc6
{[%clk 0:01:18.9]} 35. f4 {[%clk 0:00:16]} 35... Bc7 {[%clk 0:01:18.2]} 36. Bd2
{[%clk 0:00:15.2]} 36... f5 {[%clk 0:01:18.9]} 37. Bc1 {[%clk 0:00:14.5]} 37...
h6 {[%clk 0:01:19.2]} 38. h4 {[%clk 0:00:14.2]} 38... g6 {[%clk 0:01:17.1]} 39.
g3 {[%clk 0:00:13]} 39... e5 {[%clk 0:01:18.1]} 40. Bb2 {[%clk 0:00:13.3]} 40...
e4 {[%clk 0:01:13.5]} 41. Bd4 {[%clk 0:00:11.3]} 41... Bd8 {[%clk 0:01:13.3]}
42. Bg7 {[%clk 0:00:09.8]} 42... Bb6 {[%clk 0:01:13.2]} 43. Bd4 {[%clk
0:00:10.2]} 43... Bd8 {[%clk 0:01:14.1]} 44. Bg7 {[%clk 0:00:10.9]} 44... h5
{[%clk 0:01:15.1]} 45. Bd4 {[%clk 0:00:11.5]} 45... Be7 {[%clk 0:01:14.1]} 46.
Be5 {[%clk 0:00:11]} 46... Bc5 {[%clk 0:01:14.9]} 47. Bd4 {[%clk 0:00:11.9]}
47... Bd6 {[%clk 0:01:15.8]} 48. Bf6 {[%clk 0:00:12.7]} 48... Bc7 {[%clk
0:01:15.3]} 49. Bd4 {[%clk 0:00:13.3]} 49... Bd8 {[%clk 0:01:16.1]} 50. Be5
{[%clk 0:00:14]} 50... Bb6 {[%clk 0:01:17.1]} 51. Bd4 {[%clk 0:00:15.1]} 51...
Bc7 {[%clk 0:01:18.3]} 52. Bc5 {[%clk 0:00:15.3]} 52... Bd8 {[%clk 0:01:18.2]}
53. Ba7 {[%clk 0:00:14.3]} 53... Bc7 {[%clk 0:01:17.5]} 54. Kd4 {[%clk
0:00:13.5]} 54... Kb7 {[%clk 0:01:07.9]} 55. Bc5 {[%clk 0:00:13.4]} 55... Kc6
{[%clk 0:01:09.2]} 56. Kc4 {[%clk 0:00:11.9]} 56... Bd8 {[%clk 0:01:09]} 57. Bd4
{[%clk 0:00:11.6]} 57... Bc7 {[%clk 0:01:09.8]} 58. Bc5 {[%clk 0:00:12.3]} 58...
Bd8 {[%clk 0:01:10.1]} 59. Bd4 {[%clk 0:00:13.5]} 59... Be7 {[%clk 0:01:10]} 60.
Be5 {[%clk 0:00:12.1]} 60... Bc5 {[%clk 0:01:09.3]} 61. Bd4 {[%clk 0:00:13.3]}
61... Bd6 {[%clk 0:01:10.3]} 62. Bf6 {[%clk 0:00:12.2]} 62... Bc7 {[%clk
0:01:10.4]} 63. Bd4 {[%clk 0:00:12.8]} 63... Bd8 {[%clk 0:01:10.4]} 64. Be5
{[%clk 0:00:13.6]} 64... Bb6 {[%clk 0:01:11.2]} 65. Bd4 {[%clk 0:00:14.9]} 65...
Bc7 {[%clk 0:01:12.4]} 66. Be5 {[%clk 0:00:16]} 66... Bb6 {[%clk 0:01:13.5]} 67.
Bd4 {[%clk 0:00:17.3]} 67... Bc7 {[%clk 0:01:14.8]} 68. Be5 {[%clk 0:00:18.5]}
1/2-1/2

[Event "*** Titled Tuesday 3|2 Blitz (Early)"]
[Site "Chess.com"]
[Date "2016.11.01"]
[Round "1"]
[White "FlySooHigh"]
[Black "silverback96"]
[Result "1-0"]
[WhiteElo "2444"]
[BlackElo "2015"]
[TimeControl "180+2"]
[EndTime "11:09:50 PDT"]
[Termination "FlySooHigh won by resignation"]

1. e4 {[%clk 0:02:59.9]} 1... e6 {[%clk 0:02:52.9]} 2. d4 {[%clk 0:03:00.1]}
2... d5 {[%clk 0:02:53.5]} 3. e5 {[%clk 0:03:01.1]} 3... c5 {[%clk 0:02:53.8]}
4. c3 {[%clk 0:03:02.2]} 4... Qb6 {[%clk 0:02:54.7]} 5. Nf3 {[%clk 0:03:02.9]}
5... Nc6 {[%clk 0:02:55.5]} 6. a3 {[%clk 0:03:01.8]} 6... c4 {[%clk 0:02:56.6]}
7. g3 {[%clk 0:03:00.9]} 7... f6 {[%clk 0:02:56.6]} 8. exf6 {[%clk 0:02:58.5]}
8... Nxf6 {[%clk 0:02:57]} 9. Bg2 {[%clk 0:02:59.6]} 9... Bd6 {[%clk 0:02:54.5]}
10. O-O {[%clk 0:03:00.7]} 10... O-O {[%clk 0:02:55.2]} 11. Qe2 {[%clk
0:02:57.3]} 11... Bd7 {[%clk 0:02:51.1]} 12. Ne5 {[%clk 0:02:56.8]} 12... Rae8
{[%clk 0:01:51.2]} 13. f4 {[%clk 0:02:47.6]} 13... Re7 {[%clk 0:01:42.7]} 14.
Nxd7 {[%clk 0:02:46.7]} 14... Nxd7 {[%clk 0:01:41.3]} 15. Kh1 {[%clk 0:02:47.1]}
15... Nd8 {[%clk 0:01:36.7]} 16. Nd2 {[%clk 0:02:40.7]} 16... Ref7 {[%clk
0:01:37.4]} 17. Nf3 {[%clk 0:02:40.1]} 17... Rf6 {[%clk 0:01:35]} 18. Be3 {[%clk
0:02:35.6]} 18... Rh6 {[%clk 0:01:33.2]} 19. Rae1 {[%clk 0:02:33.6]} 19... Nf6
{[%clk 0:01:22.9]} 20. Kg1 {[%clk 0:02:20.3]} 20... Ne4 {[%clk 0:01:18.2]} 21.
Ne5 {[%clk 0:02:04.2]} 21... Nf6 {[%clk 0:00:51.9]} 22. g4 {[%clk 0:01:54.6]}
22... Rh4 {[%clk 0:00:47]} 23. h3 {[%clk 0:01:52.8]} 23... Bxe5 {[%clk
0:00:21.4]} 24. fxe5 {[%clk 0:01:40.3]} 24... Nd7 {[%clk 0:00:23.3]} 25. Bg5
{[%clk 0:01:34.6]} 25... Rh6 {[%clk 0:00:22.4]} 26. Bxh6 {[%clk 0:01:32.3]}
26... gxh6 {[%clk 0:00:24.3]} 27. Rxf8+ {[%clk 0:01:33.5]} 27... Nxf8 {[%clk
0:00:26.2]} 28. Rf1 {[%clk 0:01:32.7]} 28... Ng6 {[%clk 0:00:27.6]} 29. Qf2
{[%clk 0:01:32.8]} 29... Qc7 {[%clk 0:00:27.3]} 30. h4 {[%clk 0:01:33.1]} 30...
Qg7 {[%clk 0:00:28]} 31. Kh2 {[%clk 0:01:19.4]} 31... Ne7 {[%clk 0:00:27.3]} 32.
Bf3 {[%clk 0:01:13.9]} 32... Ng6 {[%clk 0:00:25.7]} 33. Bd1 {[%clk 0:01:12.2]}
33... Qe7 {[%clk 0:00:20.2]} 34. Kh3 {[%clk 0:01:08.3]} 34... b5 {[%clk
0:00:10.4]} 35. Bc2 {[%clk 0:01:08.1]} 35... a5 {[%clk 0:00:09.5]} 36. Qf6
{[%clk 0:00:30.4]} 36... Qxf6 {[%clk 0:00:10.1]} 37. Rxf6 {[%clk 0:00:32.3]}
37... Kg7 {[%clk 0:00:11.4]} 38. Kg3 {[%clk 0:00:26]} 38... a4 {[%clk
0:00:11.2]} 39. h5 {[%clk 0:00:18]} 39... Ne7 {[%clk 0:00:12.5]} 40. Kh4 {[%clk
0:00:17.6]} 40... Nf7 {[%clk 0:00:13.8]} 41. Rxe6 {[%clk 0:00:17.6]} 41... Kf8
{[%clk 0:00:11.9]} 42. Rb6 {[%clk 0:00:17.1]} 42... Ng5 {[%clk 0:00:10.6]} 43.
Rxb5 {[%clk 0:00:14.9]} 43... Nf3+ {[%clk 0:00:12.5]} 44. Kg3 {[%clk 0:00:15.8]}
44... Ne1 {[%clk 0:00:11.3]} 45. Bxh7 {[%clk 0:00:16.1]} 45... Nc6 {[%clk
0:00:11.2]} 46. Kf2 {[%clk 0:00:15.4]} 46... Nd3+ {[%clk 0:00:07.5]} 47. Bxd3
{[%clk 0:00:16]} 47... cxd3 {[%clk 0:00:09.4]} 48. Ke3 {[%clk 0:00:17.7]} 48...
Ne7 {[%clk 0:00:10.4]} 49. Kxd3 {[%clk 0:00:17.5]} 49... Ng8 {[%clk 0:00:12.3]}
1-0

[Event "*** Titled Tuesday 3|2 Blitz (Early)"]
[Site "Chess.com"]
[Date "2016.11.01"]
[Round "1"]
[White "Holden-Caulfield"]
[Black "GremioPrudente"]
[Result "1-0"]
[WhiteElo "2477"]
[BlackElo "2039"]
[TimeControl "180+2"]
[EndTime "11:09:53 PDT"]
[Termination "Holden-Caulfield won on time"]

1. d4 {[%clk 0:02:59.8]} 1... d5 {[%clk 0:02:59.6]} 2. Nf3 {[%clk 0:03:00.8]}
2... Nf6 {[%clk 0:02:58.7]} 3. Bf4 {[%clk 0:03:01.7]} 3... e6 {[%clk 0:02:58.3]}
4. e3 {[%clk 0:03:02.8]} 4... Bd6 {[%clk 0:02:58.8]} 5. Ne5 {[%clk 0:03:02.5]}
5... O-O {[%clk 0:02:51.2]} 6. Bd3 {[%clk 0:03:02.9]} 6... Bxe5 {[%clk
0:02:44.7]} 7. dxe5 {[%clk 0:03:03.6]} 7... Nfd7 {[%clk 0:02:29.2]} 8. Nd2
{[%clk 0:03:03]} 8... f5 {[%clk 0:02:28.1]} 9. exf6 {[%clk 0:02:58.5]} 9... Nxf6
{[%clk 0:02:26.3]} 10. O-O {[%clk 0:02:59.1]} 10... Nc6 {[%clk 0:02:26.3]} 11.
Nf3 {[%clk 0:02:58.9]} 11... Qe7 {[%clk 0:02:20.8]} 12. Ne5 {[%clk 0:02:58.8]}
12... Nxe5 {[%clk 0:02:20.8]} 13. Bxe5 {[%clk 0:03:00]} 13... c5 {[%clk
0:02:14.6]} 14. c4 {[%clk 0:02:57.8]} 14... Bd7 {[%clk 0:02:00.8]} 15. Qc2
{[%clk 0:02:56]} 15... h6 {[%clk 0:01:51.4]} 16. Rad1 {[%clk 0:02:53.9]} 16...
Bc6 {[%clk 0:01:48.2]} 17. f3 {[%clk 0:02:52.8]} 17... Rad8 {[%clk 0:01:41.4]}
18. Rfe1 {[%clk 0:02:50.8]} 18... b6 {[%clk 0:01:39.8]} 19. b3 {[%clk
0:02:50.3]} 19... Nd7 {[%clk 0:01:34.3]} 20. Bb2 {[%clk 0:02:48.5]} 20... Nf6
{[%clk 0:01:28.5]} 21. Bg6 {[%clk 0:02:45]} 21... Be8 {[%clk 0:01:24.4]} 22. Bd3
{[%clk 0:02:40.8]} 22... Bc6 {[%clk 0:01:24.2]} 23. Qc1 {[%clk 0:02:41.1]} 23...
Rd7 {[%clk 0:01:18.7]} 24. Bb1 {[%clk 0:02:41.8]} 24... Rfd8 {[%clk 0:01:16.8]}
25. Qc2 {[%clk 0:02:42.8]} 25... d4 {[%clk 0:01:11.4]} 26. exd4 {[%clk
0:02:41.7]} 26... cxd4 {[%clk 0:01:12.3]} 27. Qe2 {[%clk 0:02:42.6]} 27... Kf7
{[%clk 0:00:43.9]} 28. Bd3 {[%clk 0:02:32.1]} 28... Re8 {[%clk 0:00:38.3]} 29.
Qe5 {[%clk 0:02:31.1]} 29... Qd6 {[%clk 0:00:33.9]} 30. Bxd4 {[%clk 0:01:58.8]}
30... Qxe5 {[%clk 0:00:20.5]} 31. Bxe5 {[%clk 0:01:58.5]} 31... Red8 {[%clk
0:00:19.6]} 32. Bc2 {[%clk 0:01:59.6]} 32... Rxd1 {[%clk 0:00:18.4]} 33. Rxd1
{[%clk 0:02:00.7]} 33... Rxd1+ {[%clk 0:00:19.1]} 34. Bxd1 {[%clk 0:02:02]}
34... Nd7 {[%clk 0:00:20]} 35. Bc3 {[%clk 0:02:02.9]} 35... Nc5 {[%clk
0:00:20.7]} 36. Bc2 {[%clk 0:02:02.7]} 36... Nd7 {[%clk 0:00:19.4]} 37. Kf2
{[%clk 0:02:03.5]} 37... a6 {[%clk 0:00:20.1]} 38. Ke3 {[%clk 0:02:04.1]} 38...
e5 {[%clk 0:00:20.5]} 39. Bf5 {[%clk 0:02:03.7]} 39... Kf6 {[%clk 0:00:17.8]}
40. Bc2 {[%clk 0:02:02.9]} 40... g6 {[%clk 0:00:18.1]} 41. b4 {[%clk 0:02:00.2]}
41... g5 {[%clk 0:00:17.7]} 42. g3 {[%clk 0:02:01.5]} 42... Ke6 {[%clk
0:00:16.9]} 43. a3 {[%clk 0:01:57.8]} 43... Nf6 {[%clk 0:00:17.4]} 44. Bd3
{[%clk 0:01:57.5]} 44... Nd7 {[%clk 0:00:18]} 45. Ke2 {[%clk 0:01:52.6]} 45...
Bb7 {[%clk 0:00:19]} 46. Bd2 {[%clk 0:01:53.7]} 46... Nf6 {[%clk 0:00:19.7]} 47.
h4 {[%clk 0:01:54.2]} 47... gxh4 {[%clk 0:00:20.2]} 48. gxh4 {[%clk 0:01:55.4]}
48... h5 {[%clk 0:00:21.2]} 49. Be3 {[%clk 0:01:56.7]} 49... e4 {[%clk
0:00:15.5]} 50. fxe4 {[%clk 0:01:56.7]} 50... Nxe4 {[%clk 0:00:13.9]} 51. Bxb6
{[%clk 0:01:50.9]} 51... Nf6 {[%clk 0:00:07.2]} 52. Bg6 {[%clk 0:01:47.2]} 52...
Bh1 {[%clk 0:00:05.7]} 53. Bd4 {[%clk 0:01:46.6]} 53... Be4 {[%clk 0:00:03.3]}
54. Bxe4 {[%clk 0:01:44.3]} 54... Nxe4 {[%clk 0:00:04.1]} 55. Kd3 {[%clk
0:01:43.3]} 55... Nd6 {[%clk 0:00:04.4]} 56. a4 {[%clk 0:01:44.5]} 56... Nf5
{[%clk 0:00:05.6]} 57. Bf2 {[%clk 0:01:45.7]} 57... Kd6 {[%clk 0:00:06.3]} 58.
b5 {[%clk 0:01:46.8]} 58... axb5 {[%clk 0:00:06.8]} 59. cxb5 {[%clk 0:01:48.4]}
59... Kc7 {[%clk 0:00:08]} 60. Ke4 {[%clk 0:01:46]} 60... Nd6+ {[%clk
0:00:08.6]} 61. Kd5 {[%clk 0:01:47.3]} 61... Nf5 {[%clk 0:00:08.4]} 62. a5
{[%clk 0:01:48.5]} 62... Ne7+ {[%clk 0:00:09.1]} 63. Ke6 {[%clk 0:01:49.7]}
63... Nc8 {[%clk 0:00:10.4]} 64. a6 {[%clk 0:01:50.3]} 64... Kb8 {[%clk
0:00:09.2]} 65. b6 {[%clk 0:01:48.8]} 65... Nxb6 {[%clk 0:00:02.8]} 66. Bxb6
{[%clk 0:01:49.4]} 66... Ka8 {[%clk 0:00:04.7]} 67. Ke5 {[%clk 0:01:50.4]} 67...
Kb8 {[%clk 0:00:06.2]} 68. Kf5 {[%clk 0:01:51.8]} 68... Ka8 {[%clk 0:00:08.1]}
69. Kg5 {[%clk 0:01:53.2]} 69... Kb8 {[%clk 0:00:10]} 70. Kxh5 {[%clk
0:01:54.6]} 70... Ka8 {[%clk 0:00:11.5]} 71. Kg6 {[%clk 0:01:56]} 71... Kb8
{[%clk 0:00:13.4]} 72. h5 {[%clk 0:01:57.5]} 72... Kc8 {[%clk 0:00:15.1]} 73. h6
{[%clk 0:01:59]} 1-0

[Event "*** Titled Tuesday 3|2 Blitz (Early)"]
[Site "Chess.com"]
[Date "2016.11.01"]
[Round "1"]
[White "avto24"]
[Black "GMBenjaminBok"]
[Result "0-1"]
[WhiteElo "2326"]
[BlackElo "2602"]
[TimeControl "180+2"]
[EndTime "11:10:06 PDT"]
[Termination "GMBenjaminBok won by checkmate"]

1. e4 {[%clk 0:03:00]} 1... c5 {[%clk 0:03:00.8]} 2. c3 {[%clk 0:03:00.9]} 2...
Nf6 {[%clk 0:02:59.4]} 3. e5 {[%clk 0:03:01.6]} 3... Nd5 {[%clk 0:03:00.9]} 4.
d4 {[%clk 0:03:02.2]} 4... cxd4 {[%clk 0:03:01.4]} 5. cxd4 {[%clk 0:03:02.6]}
5... d6 {[%clk 0:03:02.8]} 6. Nf3 {[%clk 0:03:03.8]} 6... Nc6 {[%clk 0:03:03.7]}
7. Bc4 {[%clk 0:03:04.1]} 7... dxe5 {[%clk 0:03:04.7]} 8. dxe5 {[%clk
0:02:53.4]} 8... Ndb4 {[%clk 0:03:05.3]} 9. Qb3 {[%clk 0:02:40.6]} 9... e6
{[%clk 0:03:05.4]} 10. O-O {[%clk 0:02:07.5]} 10... Na5 {[%clk 0:03:05.2]} 11.
Bb5+ {[%clk 0:01:56]} 11... Bd7 {[%clk 0:03:05.6]} 12. Qa4 {[%clk 0:01:55.6]}
12... Bxb5 {[%clk 0:03:06.3]} 13. Qxb5+ {[%clk 0:01:56.7]} 13... Nac6 {[%clk
0:03:08.2]} 14. Nc3 {[%clk 0:01:52.1]} 14... a6 {[%clk 0:02:58.8]} 15. Qc4
{[%clk 0:01:41.4]} 15... Qd3 {[%clk 0:02:50.7]} 16. Qg4 {[%clk 0:01:32]} 16...
h5 {[%clk 0:02:31.7]} 17. Qg3 {[%clk 0:01:31.1]} 17... Qf5 {[%clk 0:02:09.5]}
18. Rd1 {[%clk 0:01:00]} 18... Qg4 {[%clk 0:02:07.4]} 19. a3 {[%clk 0:00:50.5]}
19... Nc2 {[%clk 0:01:33.4]} 20. Rb1 {[%clk 0:00:50.8]} 20... Bc5 {[%clk
0:01:32.6]} 21. b4 {[%clk 0:00:33]} 21... Ba7 {[%clk 0:00:46.4]} 22. Bb2 {[%clk
0:00:33.1]} 22... N2d4 {[%clk 0:00:43]} 23. Nxd4 {[%clk 0:00:28]} 23... Bxd4
{[%clk 0:00:35.8]} 24. Qxg4 {[%clk 0:00:22.1]} 24... hxg4 {[%clk 0:00:35.6]} 25.
Ne4 {[%clk 0:00:23.5]} 25... Bxb2 {[%clk 0:00:27.1]} 26. Rxb2 {[%clk 0:00:25.4]}
26... Nxe5 {[%clk 0:00:28.3]} 27. Nd6+ {[%clk 0:00:24.8]} 27... Ke7 {[%clk
0:00:29.5]} 28. Nxb7 {[%clk 0:00:26.1]} 28... Rhc8 {[%clk 0:00:26.2]} 29. Re2
{[%clk 0:00:21.8]} 29... Nc4 {[%clk 0:00:23.1]} 30. Nc5 {[%clk 0:00:21.2]} 30...
Ra7 {[%clk 0:00:21]} 31. Ra2 {[%clk 0:00:17.3]} 31... a5 {[%clk 0:00:21.8]} 32.
Nd3 {[%clk 0:00:15.3]} 32... axb4 {[%clk 0:00:22]} 33. Nxb4 {[%clk 0:00:15.2]}
33... Rxa3 {[%clk 0:00:22.7]} 34. Rxa3 {[%clk 0:00:16.5]} 34... Nxa3 {[%clk
0:00:23.2]} 35. h3 {[%clk 0:00:18.4]} 35... gxh3 {[%clk 0:00:23.7]} 36. gxh3
{[%clk 0:00:19.4]} 36... Nb5 {[%clk 0:00:25.3]} 37. Rb1 {[%clk 0:00:18.9]} 37...
Nd6 {[%clk 0:00:25.5]} 38. Nd3 {[%clk 0:00:18.6]} 38... Rc7 {[%clk 0:00:25.5]}
39. Kg2 {[%clk 0:00:18.5]} 39... Nf5 {[%clk 0:00:25.8]} 40. Ne5 {[%clk 0:00:17]}
40... f6 {[%clk 0:00:26.3]} 41. Ng6+ {[%clk 0:00:17.5]} 41... Kf7 {[%clk
0:00:27.6]} 42. Nf4 {[%clk 0:00:18.4]} 42... g5 {[%clk 0:00:29.1]} 43. Nd3
{[%clk 0:00:18.4]} 43... Rc3 {[%clk 0:00:30.1]} 44. Rb7+ {[%clk 0:00:18.9]}
44... Kg6 {[%clk 0:00:31.2]} 45. Ne1 {[%clk 0:00:19.9]} 45... Nh4+ {[%clk
0:00:31.8]} 46. Kh2 {[%clk 0:00:20]} 46... e5 {[%clk 0:00:31.2]} 47. Rb6 {[%clk
0:00:18.8]} 47... Ra3 {[%clk 0:00:31.5]} 48. Rb2 {[%clk 0:00:14.9]} 48... Ra1
{[%clk 0:00:30]} 49. Ng2 {[%clk 0:00:10.1]} 49... Nf3+ {[%clk 0:00:26.9]} 50.
Kg3 {[%clk 0:00:11.5]} 50... e4 {[%clk 0:00:25.8]} 51. h4 {[%clk 0:00:12.9]}
51... Rg1 {[%clk 0:00:22]} 52. hxg5 {[%clk 0:00:08.1]} 52... Kxg5 {[%clk
0:00:23.5]} 53. Rb5+ {[%clk 0:00:08.5]} 53... f5 {[%clk 0:00:24.4]} 54. Kh3
{[%clk 0:00:09.5]} 54... Rh1+ {[%clk 0:00:16.1]} 55. Kg3 {[%clk 0:00:10.8]}
55... Nd4 {[%clk 0:00:14.9]} 56. Ra5 {[%clk 0:00:11.3]} 56... Ne2# {[%clk
0:00:15.5]} 0-1

[Event "*** Titled Tuesday 3|2 Blitz (Early)"]
[Site "Chess.com"]
[Date "2016.11.01"]
[Round "1"]
[White "Wilsonpalencia"]
[Black "GM_dmitrij"]
[Result "1-0"]
[WhiteElo "2327"]
[BlackElo "2430"]
[TimeControl "180+2"]
[EndTime "11:10:29 PDT"]
[Termination "Wilsonpalencia won by resignation"]

1. e4 {[%clk 0:02:39.8]} 1... e5 {[%clk 0:02:59.5]} 2. Nf3 {[%clk 0:02:40.6]}
2... Nc6 {[%clk 0:03:00.6]} 3. d4 {[%clk 0:02:41.3]} 3... exd4 {[%clk 0:03:01]}
4. Nxd4 {[%clk 0:02:42.3]} 4... Nf6 {[%clk 0:03:02.1]} 5. Nxc6 {[%clk
0:02:43.2]} 5... bxc6 {[%clk 0:03:02.9]} 6. e5 {[%clk 0:02:44.3]} 6... Qe7
{[%clk 0:03:04.4]} 7. Qe2 {[%clk 0:02:44.7]} 7... Nd5 {[%clk 0:03:05.8]} 8. c4
{[%clk 0:02:46.2]} 8... Nb6 {[%clk 0:03:07.2]} 9. Nc3 {[%clk 0:02:46.8]} 9...
Ba6 {[%clk 0:03:07]} 10. Qe4 {[%clk 0:02:43.6]} 10... f6 {[%clk 0:03:07.9]} 11.
exf6 {[%clk 0:02:39.2]} 11... Qxe4+ {[%clk 0:03:08.9]} 12. Nxe4 {[%clk
0:02:39.3]} 12... Bxc4 {[%clk 0:03:10.1]} 13. Bg5 {[%clk 0:02:30.9]} 13... Bb4+
{[%clk 0:02:53.5]} 14. Bd2 {[%clk 0:02:24.9]} 14... Bxd2+ {[%clk 0:02:39.9]} 15.
Kxd2 {[%clk 0:02:23.7]} 15... O-O {[%clk 0:02:13.8]} 16. fxg7 {[%clk 0:02:21.4]}
16... Kxg7 {[%clk 0:02:13.8]} 17. f3 {[%clk 0:02:22]} 17... Rae8 {[%clk
0:02:04.1]} 18. b3 {[%clk 0:02:17.6]} 18... Bd5 {[%clk 0:01:51.4]} 19. Nc3
{[%clk 0:02:16.1]} 19... c5 {[%clk 0:01:46.2]} 20. Bb5 {[%clk 0:02:07.4]} 20...
c6 {[%clk 0:01:45.5]} 21. Bd3 {[%clk 0:02:03.6]} 21... c4 {[%clk 0:01:34.1]} 22.
Bc2 {[%clk 0:02:00.9]} 22... Be6 {[%clk 0:01:25.7]} 23. Rhe1 {[%clk 0:01:52.3]}
23... d5 {[%clk 0:01:26.1]} 24. Rad1 {[%clk 0:01:46.5]} 24... c5 {[%clk
0:00:35.2]} 25. Nb5 {[%clk 0:01:37.8]} 25... d4 {[%clk 0:00:22.3]} 26. Nc7
{[%clk 0:01:32.2]} 26... c3+ {[%clk 0:00:23.4]} 27. Kc1 {[%clk 0:01:31.8]} 27...
Kf6 {[%clk 0:00:19.3]} 28. Nxe8+ {[%clk 0:01:28.6]} 28... Rxe8 {[%clk
0:00:20.9]} 29. f4 {[%clk 0:01:29.1]} 29... Rg8 {[%clk 0:00:20.9]} 30. g3 {[%clk
0:01:27.2]} 30... h5 {[%clk 0:00:22.5]} 31. Re5 {[%clk 0:01:26.6]} 31... Nd5
{[%clk 0:00:23.2]} 32. Rde1 {[%clk 0:01:26.9]} 32... Ne3 {[%clk 0:00:24.7]} 33.
R5xe3 {[%clk 0:01:24.8]} 33... dxe3 {[%clk 0:00:26.4]} 34. Rxe3 {[%clk 0:01:26]}
34... c4 {[%clk 0:00:28]} 35. Rxc3 {[%clk 0:01:22.8]} 35... cxb3 {[%clk
0:00:28.5]} 36. axb3 {[%clk 0:01:24.2]} 36... h4 {[%clk 0:00:29.3]} 37. Kb2
{[%clk 0:01:22.5]} 37... hxg3 {[%clk 0:00:30]} 38. hxg3 {[%clk 0:01:23.5]} 38...
Bd5 {[%clk 0:00:30.4]} 39. Re3 {[%clk 0:01:21.5]} 39... Rg7 {[%clk 0:00:31.3]}
40. Rd3 {[%clk 0:01:19]} 40... Be4 {[%clk 0:00:29.8]} 41. Re3 {[%clk 0:01:09.8]}
41... Bd5 {[%clk 0:00:31]} 42. Re5 {[%clk 0:01:09.9]} 42... Be6 {[%clk
0:00:31.2]} 43. Re3 {[%clk 0:01:09.2]} 43... a5 {[%clk 0:00:32.6]} 44. Ka3
{[%clk 0:01:10.1]} 44... Ra7 {[%clk 0:00:29.4]} 45. Bd3 {[%clk 0:01:09.5]} 45...
Rb7 {[%clk 0:00:26.2]} 46. Bc4 {[%clk 0:01:09.6]} 46... Bxc4 {[%clk 0:00:27.2]}
47. bxc4 {[%clk 0:01:10.7]} 47... Rc7 {[%clk 0:00:28.5]} 48. Rc3 {[%clk
0:01:12]} 48... Rc5 {[%clk 0:00:29.5]} 49. Ka4 {[%clk 0:01:13.2]} 49... Kf5
{[%clk 0:00:30.8]} 50. Rc1 {[%clk 0:01:13.7]} 50... Kg4 {[%clk 0:00:32.1]} 51.
Rc3 {[%clk 0:01:15]} 51... Kf5 {[%clk 0:00:32.2]} 52. Kb3 {[%clk 0:01:16]} 52...
Kg4 {[%clk 0:00:33.4]} 53. Rd3 {[%clk 0:01:16.8]} 53... Rc7 {[%clk 0:00:34.1]}
54. Kc3 {[%clk 0:01:15.9]} 54... Rc6 {[%clk 0:00:31.6]} 55. Kb3 {[%clk
0:01:10.1]} 55... Rc7 {[%clk 0:00:32]} 56. Rc3 {[%clk 0:01:04.4]} 56... Rc5
{[%clk 0:00:33.2]} 57. Kc2 {[%clk 0:01:05.5]} 57... Kh3 {[%clk 0:00:31.2]} 58.
Kd3 {[%clk 0:01:05.5]} 58... a4 {[%clk 0:00:32.5]} 59. Kd4 {[%clk 0:01:06.4]}
59... Ra5 {[%clk 0:00:33.5]} 60. Ra3 {[%clk 0:01:05.6]} 60... Kg4 {[%clk
0:00:34.9]} 61. c5 {[%clk 0:01:06]} 61... Ra8 {[%clk 0:00:34.5]} 62. c6 {[%clk
0:01:06.4]} 62... Kf5 {[%clk 0:00:34.7]} 63. Kd5 {[%clk 0:01:07.5]} 63... Rd8+
{[%clk 0:00:35.1]} 64. Kc5 {[%clk 0:01:08.7]} 64... Ra8 {[%clk 0:00:36.8]} 65.
c7 {[%clk 0:01:09.5]} 65... Ke6 {[%clk 0:00:37.1]} 66. Kc6 {[%clk 0:01:10.5]}
66... Rc8 {[%clk 0:00:34.9]} 67. Rxa4 {[%clk 0:01:06.5]} 1-0